fUST/lending_fUST_20250918
["ID","MTS","AMOUNT","RATE_DAILY","PERIOD"]
[386067399,1758208978041,179.4901113,0.00022454,2]
[386067400,1758208979680,480.0,0.00022851,3]
[386067401,1758208988867,480.0,0.00022848,3]
[386067402,1758208989446,480.0,0.0002285,3]
[386067403,1758208996705,480.0,0.00022851,3]
[386067404,1758208999424,480.0,0.00022848,3]
[386067405,1758209009061,480.0,0.00022851,3]
[386067406,1758209009301,480.0,0.00022851,3]
[386067407,1758209011104,480.0,0.00022851,3]
[386067408,1758209018187,480.0,0.00022851,3]
[386067411,1758209033031,480.0,0.0002285,3]
[386067412,1758209034127,480.0,0.0002285,3]
[386067413,1758209036215,480.0,0.00022851,3]
[386067414,1758209043756,480.0,0.0002285,3]
[386067415,1758209054409,480.0,0.0002285,3]
[386067416,1758209057830,480.0,0.0002285,3]
[386067417,1758209064514,480.0,0.00022849,3]
[386067418,1758209067454,480.0,0.00022848,3]
[386067419,1758209075756,307.0193756,0.00022246,2]
[386067420,1758209078646,480.0,0.0002285,3]
[386067425,1758209106643,1544.31377391,0.000199,2]
[386067426,1758209106792,1544.31377374,0.00021149,2]
[386067427,1758209106988,1544.31377374,0.00022398,2]
[386067437,1758209121621,480.0,0.0002285,3]
[386067438,1758209125578,260.04930301,0.0002285,3]
[386067439,1758209129597,-219.95069699,0.0002285,3]
[386067440,1758209129630,-1002.85,0.0002285,3]
[386067441,1758209134700,183.566255,0.00022209,2]
[386067442,1758209138059,480.0,0.0002285,3]
[386067443,1758209145378,480.0,0.0002285,3]
[386067444,1758209146951,480.0,0.0002285,3]
[386067445,1758209165594,500.0,0.000228,2]
[386067450,1758209172068,399.0807186,0.00022851,3]
[386067451,1758209177616,500.0,0.000228,2]
[386067452,1758209182710,248.27,0.0002285,3]
[386067453,1758209184315,480.0,0.0002285,3]
[386067454,1758209201191,480.0,0.00022848,3]
[386067455,1758209210059,495.68204867,0.00022851,3]
[386067456,1758209211551,9024.32795133,0.00022851,2]
[386067457,1758209214709,-3134.09625353,0.00022851,2]
[386067458,1758209219291,-480.0,0.00022848,3]
[386067459,1758209219323,-3731.81749294,0.00022851,2]
[386067460,1758209219354,-480.0,0.00022851,3]
[386067461,1758209221090,480.0,0.0002285,3]
[386067462,1758209223212,136.37501412,0.00022848,3]
[386067649,1758209290593,1488.38613334,0.000199,2]
[386067650,1758209290687,1488.3861332,0.00021149,2]
[386067651,1758209290811,1488.3861332,0.00022398,2]
[386067653,1758209324942,212.4638611,0.00016,2]
[386067655,1758209396265,205.02731148,0.00022751,2]
[386067656,1758209403183,11483.01937806,0.0002115,2]
[386067657,1758209419604,392.73694124,0.00022751,2]
[386067709,1758209432672,-300.0,0.00022847,2]
[386067711,1758209432682,-927.73325423,0.00022847,2]
[386067717,1758209432708,-272.26674577,0.00022847,2]
[386067720,1758209432718,-343.62498588,0.00022848,3]
[386067722,1758209432727,-480.0,0.00022848,3]
[386067724,1758209432737,-18.19468449,0.00022848,3]
[386067726,1758209432748,-461.80531551,0.00022848,3]
[386067728,1758209432758,-480.0,0.00022848,3]
[386067730,1758209432769,-719.91,0.00022848,3]
[386067732,1758209432778,-480.0,0.00022848,3]
[386067734,1758209432788,-480.0,0.00022848,3]
[386067736,1758209432797,-480.0,0.00022848,3]
[386067739,1758209432807,-480.0,0.00022848,3]
[386067742,1758209432816,-480.0,0.00022849,3]
[386067745,1758209432825,-961.07,0.00022849,3]
[386067748,1758209432835,-480.9208494,0.00022849,3]
[386067751,1758209432844,-480.0,0.00022849,3]
[386067754,1758209432854,-431.4276602,0.00022849,3]
[386067758,1758209432866,-48.5723398,0.00022849,3]
[386067761,1758209432875,-480.0,0.00022849,3]
[386067764,1758209432885,-480.0,0.00022849,3]
[386067766,1758209432894,-480.0,0.00022849,3]
[386067768,1758209432903,-248.83943592,0.0002285,3]
[386067770,1758209432913,-480.0,0.0002285,3]
[386067772,1758209432923,-2027.48,0.0002285,3]
[386067774,1758209432932,-313.80248893,0.0002285,3]
[386067776,1758209432943,-166.19751107,0.0002285,3]
[386067778,1758209432953,-480.0,0.0002285,3]
[386067780,1758209432962,-475.30248893,0.0002285,3]
[386067794,1758209433084,-13.1197603,0.0002285,3]
[386067795,1758209433095,-451.94409471,0.0002285,3]
[386067796,1758209433104,-480.0,0.0002285,3]
[386067797,1758209433114,-386.53149159,0.0002285,3]
[386067798,1758209433128,-313.12021652,0.0002285,3]
[386067799,1758209433140,-166.87978348,0.0002285,3]
[386067800,1758209433149,-133.12021652,0.0002285,3]
[386067801,1758209433160,-393.77631513,0.0002285,3]
[386067802,1758209433170,-452.09285071,0.0002285,3]
[386067803,1758209433179,-480.0,0.0002285,3]
[386067804,1758209433188,-480.0,0.0002285,3]
[386067805,1758209433198,-32.83591967,0.0002285,3]
[386068123,1758209438565,-500.0,0.00022849,2]
[386068124,1758209438575,-278.35561944,0.00022849,2]
[386068125,1758209438586,-447.16408033,0.0002285,3]
[386068126,1758209438596,-480.0,0.0002285,3]
[386068127,1758209438606,-622.77442794,0.0002285,3]
[386068128,1758209438617,-160.0,0.0002285,3]
[386068129,1758209438626,-271.70587229,0.0002285,2]
[386068130,1758209438638,-11696.10379211,0.0002285,2]
[386068131,1758209438650,-516.76249321,0.0002285,2]
[386068132,1758209438671,-22763.13634297,0.0002285,2]
[386068133,1758209438681,-480.0,0.00022851,3]
[386068134,1758209438691,-480.0,0.00022851,3]
[386068135,1758209438700,-480.0,0.00022851,3]
[386068136,1758209438710,-482.89792838,0.00022851,3]
[386068137,1758209438719,-480.0,0.00022851,3]
[386068138,1758209438729,-480.0,0.00022851,3]
[386068139,1758209438739,-480.0,0.00022851,3]
[386068140,1758209438748,-480.0,0.00022851,3]
[386068141,1758209438758,-480.0,0.00022853,3]
[386068142,1758209438768,-480.0,0.00022853,3]
[386068143,1758209438778,-480.0,0.00022853,3]
[386068144,1758209438788,-480.0,0.00022853,3]
[386068145,1758209438798,-480.0,0.00022853,3]
[386068146,1758209438808,-480.0,0.00022853,3]
[386068147,1758209438817,-480.0,0.00022853,2]
[386068148,1758209438827,-480.0,0.00022854,3]
[386068149,1758209438836,-491.07909822,0.00022854,3]
[386068150,1758209438846,-570.83,0.00022854,3]
[386068151,1758209438855,-847.96496735,0.00023,3]
[386068152,1758209438865,-233.39271932,0.00023,3]
[386068153,1758209438874,-217.95274215,0.00023,3]
[386068154,1758209438884,-480.0,0.00023122,3]
[386068155,1758209438894,-480.0,0.00023122,3]
[386068156,1758209438904,-719.91,0.00023122,3]
[386068157,1758209438913,-480.0,0.00023122,3]
[386068158,1758209438923,-480.0,0.00023122,3]
[386068159,1758209438932,-480.0,0.00023122,3]
[386068160,1758209438942,-480.0,0.00023123,3]
[386068161,1758209438951,-480.0,0.00023123,3]
[386068162,1758209438961,-961.07,0.00023123,3]
[386068163,1758209438970,-210.46,0.00023123,3]
[386068164,1758209438979,-560.08,0.00023123,3]
[386068165,1758209438989,-480.0,0.00023123,3]
[386068166,1758209438998,-480.0,0.00023124,3]
[386068167,1758209439008,-480.0,0.00023124,3]
[386068168,1758209439017,-485.06882691,0.00023124,3]
[386068169,1758209439026,-480.0,0.00023124,3]
[386068170,1758209439035,-480.0,0.00023124,3]
[386068171,1758209439045,-480.0,0.00023124,3]
[386068172,1758209439054,-2027.48,0.00023124,3]
[386068173,1758209439063,-480.0,0.00023124,3]
[386068174,1758209439072,-480.0,0.00023124,3]
[386068175,1758209439082,-480.0,0.00023125,3]
[386068176,1758209439091,-480.0,0.00023127,3]
[386068177,1758209439101,-492.90619398,0.00023127,3]
[386068178,1758209439110,-480.0,0.00023127,3]
[386068179,1758209439123,-319.53,0.00023127,3]
[386068180,1758209439132,-480.0,0.00023127,3]
[386068181,1758209439142,-480.0,0.00023127,3]
[386068182,1758209439152,-233.39271932,0.00023171,2]
[386068183,1758209439162,-160.0,0.00023171,2]
[386068184,1758209439172,-319.43121757,0.0002325,2]
[386068185,1758209439182,-160.0,0.00023285,2]
[386068186,1758209439194,-160.0,0.00023285,2]
[386068187,1758209439204,-160.0,0.00023285,2]
[386068188,1758209439214,-160.0,0.00023285,2]
[386068189,1758209439224,-500.0,0.00023292,2]
[386068190,1758209439234,-500.0,0.00023292,2]
[386068191,1758209439243,-159.0593294,0.00023292,2]
[386068192,1758209439253,-160.0,0.00023293,2]
[386068193,1758209439263,-160.0,0.00023293,2]
[386068194,1758209439273,-847.96496735,0.00023293,2]
[386068195,1758209439282,-160.0,0.00023293,2]
[386068196,1758209439292,-160.0,0.00023293,2]
[386068197,1758209439302,-217.95274215,0.000233,2]
[386068198,1758209439312,-160.0,0.00023305,2]
[386068199,1758209439322,-500.0,0.00023329,2]
[386068200,1758209439331,-344.79616114,0.00023329,2]
[386068201,1758209439341,-500.0,0.00023329,2]
[386068202,1758209439351,-205.02731147,0.00023355,2]
[386068203,1758209439360,-299.13,0.00023396,3]
[386068204,1758209439370,-480.0,0.00023396,3]
[386068205,1758209439380,-719.91,0.00023396,3]
[386068206,1758209439390,-480.0,0.00023396,3]
[386068207,1758209439400,-480.0,0.00023396,3]
[386068208,1758209439409,-480.0,0.00023396,3]
[386068209,1758209439419,-297.87,0.00023397,3]
[386068210,1758209439428,-480.0,0.00023397,3]
[386068211,1758209439438,-961.07,0.00023397,3]
[386068212,1758209439447,-480.0,0.00023397,3]
[386068213,1758209439457,-480.0,0.00023398,3]
[386068214,1758209439467,-480.0,0.00023398,3]
[386068215,1758209439477,-480.0,0.00023398,3]
[386068216,1758209439487,-480.0,0.00023398,3]
[386068217,1758209439497,-2027.48,0.00023398,3]
[386068218,1758209439507,-480.0,0.00023398,3]
[386068219,1758209439517,-480.0,0.00023398,3]
[386068220,1758209439527,-480.0,0.00023401,3]
[386068221,1758209439537,-480.0,0.00023401,3]
[386068222,1758209439547,-480.0,0.00023401,3]
[386068223,1758209439556,-480.0,0.00023401,3]
[386068224,1758209439566,-176.77347122,0.00023425,2]
[386068225,1758209439576,-300.0,0.00023459,20]
[386068226,1758209439587,-300.0,0.00023459,20]
[386068227,1758209439596,-300.0,0.00023459,20]
[386068228,1758209439606,-300.0,0.00023459,20]
[386068229,1758209439616,-300.0,0.00023459,20]
[386068230,1758209439627,-300.0,0.00023459,20]
[386068231,1758209439637,-300.0,0.00023459,20]
[386068232,1758209439647,-300.0,0.00023459,20]
[386068233,1758209439657,-300.0,0.00023459,20]
[386068234,1758209439667,-300.0,0.00023459,20]
[386068235,1758209439678,-300.0,0.00023459,20]
[386068236,1758209439688,-300.0,0.00023459,20]
[386068237,1758209439698,-300.0,0.00023459,20]
[386068238,1758209439708,-300.0,0.00023459,20]
[386068239,1758209439717,-300.0,0.00023459,20]
[386068240,1758209439727,-1488.3861332,0.00023647,2]
[386068241,1758209439737,-480.0,0.0002367,3]
[386068242,1758209439747,-719.91,0.0002367,3]
[386068243,1758209439757,-480.0,0.0002367,3]
[386068244,1758209439767,-454.22895068,0.0002367,3]
[386068245,1758209439777,-480.0,0.0002367,3]
[386068246,1758209439786,-480.0,0.00023671,3]
[386068247,1758209439796,-961.07,0.00023671,3]
[386068248,1758209439806,-480.0,0.00023671,3]
[386068249,1758209439816,-480.0,0.00023672,3]
[386068250,1758209439827,-480.0,0.00023672,3]
[386068251,1758209439838,-480.0,0.00023672,3]
[386068252,1758209439849,-480.0,0.00023672,3]
[386068253,1758209439860,-2027.48,0.00023672,3]
[386068254,1758209439869,-480.0,0.00023672,3]
[386068255,1758209439879,-480.0,0.00023675,3]
[386068256,1758209439890,-480.0,0.00023675,3]
[386068257,1758209439900,-303.90554037,0.00023675,3]
[386068258,1758209439911,-480.0,0.00023675,3]
[386068259,1758209439920,-1000.0,0.0002384,2]
[386068260,1758209439930,-1000.0,0.0002384,2]
[386068261,1758209439940,-909.69292807,0.00023846,2]
[386068262,1758209439949,-1084.00000807,0.00023877,2]
[386068263,1758209439959,-160.0,0.00023893,2]
[386068264,1758209439968,-600.0,0.00023927,20]
[386068265,1758209439977,-480.0,0.00023944,3]
[386068266,1758209439987,-719.91,0.00023944,3]
[386068267,1758209439997,-480.0,0.00023944,3]
[386068268,1758209440007,-480.0,0.00023944,3]
[386068269,1758209440017,-510.32,0.00023945,3]
[386068270,1758209440026,-961.07,0.00023945,3]
[386068271,1758209440036,-584.86510504,0.00023945,2]
[386068272,1758209440046,-362.49652631,0.00023945,2]
[386068273,1758209440055,-480.0,0.00023946,3]
[386068274,1758209440065,-480.0,0.00023946,3]
[386068275,1758209440074,-480.0,0.00023946,3]
[386068276,1758209440084,-480.0,0.00023946,3]
[386068278,1758209440094,-2027.48,0.00023946,3]
[386068280,1758209440104,-341.11,0.00023946,3]
[386068281,1758209440114,-480.0,0.00023949,3]
[386068282,1758209440125,-213.14,0.00023949,3]
[386068283,1758209440135,-480.0,0.00023949,3]
[386068284,1758209440144,-205.02731147,0.00023958,2]
[386068285,1758209440154,-500.0,0.00023973,2]
[386068286,1758209440164,-82303.74313714,0.0002399,2]
[386068287,1758209440174,-500.0,0.00024058,2]
[386068288,1758209440184,-909.69292805,0.00024091,2]
[386068289,1758209440194,-719.91,0.00024218,3]
[386068290,1758209440205,-480.0,0.00024218,3]
[386068291,1758209440215,-480.0,0.00024218,3]
[386068292,1758209440225,-961.07,0.00024219,3]
[386068293,1758209440234,-480.0,0.0002422,3]
[386068294,1758209440244,-480.0,0.0002422,3]
[386068295,1758209440254,-480.0,0.0002422,3]
[386068296,1758209440264,-2027.48,0.0002422,3]
[386068297,1758209440274,-480.0,0.00024223,3]
[386068298,1758209440284,-480.0,0.00024223,3]
[386068299,1758209440294,-909.69292805,0.00024337,2]
[386068300,1758209440303,-1500.0,0.00024388,2]
[386068301,1758209440313,-1500.0,0.00024388,2]
[386068302,1758209440322,-260.0,0.00024441,2]
[386068303,1758209440331,-719.91,0.00024492,3]
[386068304,1758209440344,-480.0,0.00024492,3]
[386068305,1758209440353,-480.0,0.00024492,3]
[386068306,1758209440363,-961.07,0.00024493,3]
[386068307,1758209440372,-480.0,0.00024494,3]
[386068308,1758209440382,-480.0,0.00024494,3]
[386068309,1758209440392,-2027.48,0.00024494,3]
[386068310,1758209440402,-323.58,0.00024497,3]
[386068311,1758209440411,-480.0,0.00024497,3]
[386068312,1758209440421,-200.0,0.0002451,7]
[386068313,1758209440431,-1000.0,0.00024521,2]
[386068314,1758209440440,-909.69292805,0.00024582,2]
[386068315,1758209440450,-1000.0,0.00024606,2]
[386068316,1758209440459,-613.29962356,0.0002467,2]
[386068317,1758209440468,-483.17666998,0.00024686,2]
[386068318,1758209440478,-719.91,0.00024766,3]
[386068319,1758209440489,-480.0,0.00024766,3]
[386068320,1758209440499,-480.0,0.00024766,3]
[386068321,1758209440509,-961.07,0.00024767,3]
[386068322,1758209440518,-480.0,0.00024768,3]
[386068323,1758209440528,-480.0,0.00024768,3]
[386068324,1758209440537,-2027.48,0.00024768,3]
[386068325,1758209440546,-480.0,0.00024771,3]
[386068326,1758209440555,-420.0,0.00024806,2]
[386068327,1758209440565,-909.69292805,0.00024827,2]
[386068328,1758209440578,-3602.68715393,0.00024827,2]
[386068329,1758209440587,-977.0,0.00024863,2]
[386068330,1758209440596,-2157.0,0.00024863,2]
[386068331,1758209440605,-634.0,0.00024863,2]
[386068332,1758209440615,-412.92,0.00024863,2]
[386068333,1758209440624,-3545.5921748,0.00024895,2]
[386068334,1758209440634,-1488.3861332,0.00024896,2]
[386068335,1758209440643,-503337.771007,0.000249,2]
[386068336,1758209440653,-1680.0,0.00024921,2]
[386068337,1758209440663,-267.863,0.00024931,8]
[386068338,1758209440673,-2000.0,0.00024936,2]
[386068339,1758209440682,-1105.88314967,0.00024936,2]
[386068340,1758209440691,-168.0,0.0002496,2]
[386068341,1758209440701,-168.0,0.00024972,2]
[386068342,1758209440711,-500.0,0.00024973,2]
[386068343,1758209440720,-500.0,0.00024973,2]
[386068344,1758209440731,-502.54845032,0.00024973,2]
[386068345,1758209440742,-500.0,0.00024973,2]
[386068346,1758209440752,-500.0,0.00024973,2]
[386068347,1758209440762,-500.0,0.00024973,2]
[386068348,1758209440772,-500.0,0.00024973,2]
[386068349,1758209440782,-500.0,0.00024973,2]
[386068350,1758209440791,-500.0,0.00024973,2]
[386068351,1758209440802,-193.34991738,0.00024973,2]
[386068352,1758209440812,-500.0,0.00024973,2]
[386068353,1758209440822,-500.0,0.00024973,2]
[386068354,1758209440831,-500.0,0.00024973,2]
[386068355,1758209440841,-503.82640437,0.00024973,2]
[386068356,1758209440851,-500.0,0.00024973,2]
[386068357,1758209440861,-500.0,0.00024973,2]
[386068358,1758209440871,-360.0,0.00024989,2]
[386068359,1758209440882,-504.36519247,0.00025,2]
[386068360,1758209440891,-170.62319848,0.00025,2]
[386068361,1758209440901,-2638.36546962,0.00025,2]
[386068362,1758209440911,-49056.50919786,0.00025,2]
[386068363,1758209440920,-209.16453779,0.00025,2]
[386068364,1758209440930,-10364.0,0.00025,2]
[386068365,1758209440940,-361.0839981,0.00025,2]
[386068366,1758209440950,-6501.71810532,0.00025,2]
[386068367,1758209440959,-500.0,0.00025,2]
[386068368,1758209440969,-105057.94401218,0.00025,2]
[386068369,1758209440978,-600.0,0.00025,2]
[386068370,1758209440990,-719.91,0.0002504,3]
[386068371,1758209441000,-480.0,0.0002504,3]
[386068372,1758209441010,-480.0,0.0002504,3]
[386068373,1758209441020,-961.07,0.00025041,3]
[386068374,1758209441029,-480.0,0.00025042,3]
[386068375,1758209441042,-480.0,0.00025042,3]
[386068376,1758209441052,-2027.48,0.00025042,3]
[386068377,1758209441062,-480.0,0.00025045,3]
[386068378,1758209441072,-1500.0,0.00025068,2]
[386068379,1758209441081,-200.0,0.000251,7]
[386068380,1758209441180,-1500.0,0.00025154,2]
[386068381,1758209441190,-168.0,0.00025179,2]
[386068382,1758209441200,-1932.70667991,0.00025222,2]
[386068383,1758209441210,-168.0,0.00025293,2]
[386068384,1758209441220,-150.0,0.00025309,2]
[386068385,1758209441229,-719.91,0.00025314,3]
[386068386,1758209441239,-480.0,0.00025314,3]
[386068387,1758209441249,-480.0,0.00025314,3]
[386068388,1758209441259,-961.07,0.00025315,3]
[386068389,1758209441268,-480.0,0.00025316,3]
[386068390,1758209441278,-480.0,0.00025316,3]
[386068391,1758209441288,-2027.48,0.00025316,3]
[386068392,1758209441300,-480.0,0.00025319,3]
[386068393,1758209441311,-791.1285497,0.00025351,2]
[386068394,1758209441320,-500.0,0.00025373,2]
[386068395,1758209441330,-500.0,0.00025373,2]
[386068396,1758209441340,-1249.65,0.000254,7]
[386068397,1758209441349,-168.0,0.00025439,2]
[386068398,1758209441360,-168.0,0.00025449,2]
[386068399,1758209441370,-2500.0,0.00025484,2]
[386068400,1758209441380,-1000.0,0.000255,2]
[386068401,1758209441390,-200.0,0.0002551,7]
[386068402,1758209441400,-1003.49402217,0.00025521,2]
[386068403,1758209441409,-1000.0,0.00025521,2]
[386068404,1758209441419,-1023.51453299,0.00025521,2]
[386068405,1758209441429,-502.59968779,0.00025521,2]
[386068406,1758209441439,-1000.0,0.00025521,2]
[386068407,1758209441448,-1000.0,0.00025521,2]
[386068408,1758209441458,-247.52443193,0.00025521,2]
[386068409,1758209441468,-1000.0,0.00025521,2]
[386068410,1758209441478,-500.0,0.00025521,2]
[386068411,1758209441488,-1000.0,0.00025521,2]
[386068412,1758209441498,-460.0,0.00025537,2]
[386068413,1758209441508,-12500.0,0.00025545,7]
[386068414,1758209441517,-847.96496735,0.0002555,7]
[386068415,1758209441527,-160.0,0.0002555,7]
[386068416,1758209441537,-12500.0,0.00025554,7]
[386068417,1758209441547,-12500.0,0.00025563,7]
[386068418,1758209441557,-12500.0,0.00025572,7]
[386068419,1758209441567,-12500.0,0.0002558,7]
[386068420,1758209441577,-719.91,0.00025588,3]
[386068421,1758209441587,-480.0,0.00025588,3]
[386068422,1758209441596,-480.0,0.00025588,3]
[386068423,1758209441607,-961.07,0.00025589,3]
[386068424,1758209441617,-12500.0,0.00025589,7]
[386068425,1758209441627,-480.0,0.0002559,3]
[386068426,1758209441637,-319.94,0.0002559,3]
[386068427,1758209441646,-2027.48,0.0002559,3]
[386068428,1758209441656,-480.0,0.00025593,3]
[386068429,1758209441666,-12500.0,0.00025598,7]
[386068430,1758209441676,-2000.0,0.00025616,2]
[386068431,1758209441686,-2000.0,0.00025702,2]
[386068432,1758209441696,-168.0,0.00025798,2]
[386068433,1758209441706,-17826.67555066,0.000258,2]
[386068434,1758209441716,-719.91,0.00025862,3]
[386068435,1758209441727,-480.0,0.00025862,3]
[386068436,1758209441737,-480.0,0.00025862,3]
[386068437,1758209441747,-961.07,0.00025863,3]
[386068438,1758209441757,-480.0,0.00025864,3]
[386068439,1758209441767,-2027.48,0.00025864,3]
[386068440,1758209441777,-480.0,0.00025867,3]
[386068441,1758209441787,-502.49020776,0.00025921,2]
[386068442,1758209441797,-500.0,0.00025921,2]
[386068443,1758209441806,-168.0,0.00025934,2]
[386068444,1758209441816,-500.0,0.00025973,2]
[386068445,1758209441825,-500.0,0.00025973,2]
[386068446,1758209441835,-399.26834952,0.00025973,2]
[386068447,1758209441845,-158.38050054,0.00025973,2]
[386068448,1758209441855,-500.0,0.00025973,2]
[386068449,1758209441865,-501.40611253,0.00025973,2]
[386068450,1758209441875,-500.0,0.00025973,2]
[386068451,1758209441884,-500.0,0.00025973,2]
[386068452,1758209441894,-500.0,0.00025973,2]
[386068453,1758209441903,-3497.05041495,0.0002598,2]
[386068454,1758209441913,-37438.44258991,0.00026,10]
[386068455,1758209441923,-522.62425907,0.00026,2]
[386068456,1758209441932,-19900.0,0.00026,2]
[386068457,1758209441942,-417.15472785,0.00026,10]
[386068458,1758209441953,-4344.24143978,0.00026011,2]
[386068459,1758209441963,-1109.36641102,0.00026032,2]
[386068460,1758209441973,-375.31678154,0.00026068,2]
[386068461,1758209441983,-1500.0,0.00026068,2]
[386068462,1758209441995,-1003.87396356,0.00026068,2]
[386068463,1758209442005,-245.17995536,0.00026068,2]
[386068464,1758209442015,-503.19520387,0.00026068,2]
[386068465,1758209442024,-560.0,0.00026085,2]
[386068466,1758209442034,-200.0,0.000261,7]
[386068467,1758209442044,-392.73694117,0.00026121,2]
[386068468,1758209442053,-719.91,0.00026136,3]
[386068469,1758209442063,-480.0,0.00026136,3]
[386068470,1758209442073,-322.87812168,0.00026136,3]
[386068471,1758209442083,-961.07,0.00026137,3]
[386068472,1758209442093,-480.0,0.00026138,3]
[386068473,1758209442103,-2027.48,0.00026138,3]
[386068474,1758209442113,-480.0,0.00026141,3]
[386068475,1758209442126,-1488.3861332,0.00026145,4]
[386068476,1758209442136,-191.92774503,0.0002616,2]
[386068477,1758209442146,-2203.15056871,0.00026164,2]
[386068478,1758209442156,-2450.74529573,0.00026234,2]
[386068479,1758209442166,-168.0,0.00026248,2]
[386068480,1758209442176,-1000.0,0.0002625,2]
[386068481,1758209442186,-720.0,0.0002632,20]
[386068482,1758209442196,-168.0,0.00026363,2]
[386068483,1758209442206,-3602.68715391,0.00026364,2]
[386068484,1758209442216,-719.91,0.0002641,3]
[386068485,1758209442225,-480.0,0.0002641,3]
[386068486,1758209442236,-961.07,0.00026411,3]
[386068487,1758209442245,-480.0,0.00026412,3]
[386068488,1758209442254,-2027.48,0.00026412,3]
[386068489,1758209442263,-480.0,0.00026415,3]
[386068490,1758209442272,-502.8916786,0.00026432,10]
[386068491,1758209442282,-504.62007717,0.00026521,2]
[386068492,1758209442292,-1000.0,0.00026521,2]
[386068493,1758209442302,-1000.0,0.00026521,2]
[386068494,1758209442312,-1000.0,0.00026521,2]
[386068495,1758209442322,-168.0,0.00026606,2]
[386068496,1758209442332,-2000.0,0.00026616,2]
[386068497,1758209442342,-660.0,0.00026633,2]
[386068498,1758209442352,-719.91,0.00026684,3]
[386068499,1758209442362,-480.0,0.00026684,3]
[386068500,1758209442371,-961.07,0.00026685,3]
[386068501,1758209442381,-480.0,0.00026686,3]
[386068502,1758209442391,-2027.48,0.00026686,3]
[386068503,1758209442400,-168.0,0.00026689,2]
[386068504,1758209442410,-480.0,0.00026689,3]
[386068505,1758209442420,-151.0,0.000268,15]
[386068506,1758209442430,-168.0,0.00026841,2]
[386068507,1758209442440,-587.0,0.00026932,2]
[386068508,1758209442451,-639.9469223,0.00026944,2]
[386068509,1758209442461,-2344.8388574,0.00026944,2]
[386068510,1758209442471,-719.91,0.00026958,3]
[386068511,1758209442481,-480.0,0.00026958,3]
[386068512,1758209442491,-961.07,0.00026959,3]
[386068513,1758209442501,-320.0,0.0002696,3]
[386068514,1758209442511,-2027.48,0.0002696,3]
[386068515,1758209442522,-480.0,0.00026963,3]
[386068516,1758209442531,-43905.7263155,0.00027,2]
[386068517,1758209442541,-151.0,0.00027,18]
[386068518,1758209442551,-473.74149152,0.00027,2]
[386068519,1758209442561,-168.0,0.00027038,2]
[386068520,1758209442571,-1500.0,0.00027068,2]
[386068521,1758209442580,-1500.0,0.00027068,2]
[386068522,1758209442590,-502.7228494,0.00027068,2]
[386068523,1758209442600,-1300.0,0.00027162,2]
[386068524,1758209442610,-2000.0,0.00027164,2]
[386068525,1758209442620,-760.0,0.00027181,2]
[386068526,1758209442629,-2595.11821162,0.0002723,7]
[386068527,1758209442639,-719.91,0.00027232,3]
[386068528,1758209442649,-480.0,0.00027232,3]
[386068529,1758209442659,-961.07,0.00027233,3]
[386068530,1758209442668,-2027.48,0.00027234,3]
[386068531,1758209442678,-480.0,0.00027237,3]